[Event "FIDE World Rapid-ch Open 2018"]
[White "Mamedov, Rauf"]
[Black "Bosiocic, Marin"]
[Site "St. Petersburg"]
[Round "9.32"]
[Annotator "ChessBase"]
[Result "1/2-1/2"]
[Date "2018.12.27"]
[WhiteElo "2703"]
[BlackElo "2599"]
[PlyCount "151"]
[TimeControl "900+10"]

1. e4 {[%emt 0:2:12]} e5 {[%emt 0:0:0]} 2. Bc4 {[%emt 0:0:3]} Nf6 {[%emt 0:0:5]
} 3. d3 {[%emt 0:0:1]} Nc6 {[%emt 0:0:1]} 4. Nc3 {[%emt 0:0:0]} Bb4 {[%emt 0:0:13]} 5. Nge2 {[%emt 0:0:32]} Na5 {[%emt 0:0:28]} 6. Bb3 {[%emt 0:0:6]} Nxb3 {[%emt 0:0:11]} 7. axb3 {[%emt 0:0:2]} d5 {[%emt 0:0:0]} 8. exd5 {[%emt 0:0:8]} Nxd5 {[%emt 0:0:14]} 9. 0-0 {[%emt 0:0:3]} 0-0 {[%emt 0:0:8]} 10. Bd2 {[%emt 0:0:14]} Be7 {[%emt 0:0:16]} 11. Re1 {[%emt 0:0:19]
} Nb4 {[%emt 0:1:8]} 12. Ng3 {[%emt 0:0:29]} f6 {[%emt 0:0:0]} 13. f4 {[%emt 0:0:10]} Bc5+ {[%emt 0:0:7]} 14. Kh1 {[%emt 0:0:8]} Bf2 {[%emt 0:0:19]} 15. Re4 {[%emt 0:0:51]} c5 {[%emt 0:2:17]} 16. fxe5 {[%emt 0:0:34]
} Bxg3 {[%emt 0:0:4]} 17. hxg3 {[%emt 0:0:2]} Bf5 {[%emt 0:0:0]} 18. Re1 {[%emt 0:0:32]} fxe5 {[%emt 0:0:2]} 19. Ne4 {[%emt 0:1:45]} b6 {[%emt 0:0:1]} 20. Bxb4 {[%emt 0:0:58]} cxb4 {[%emt 0:0:0]} 21. Qd2 {[%emt 0:1:17]
} a5 {[%emt 0:0:1]} 22. Qe3 {[%emt 0:0:19]} Rc8 {[%emt 0:0:0]} 23. Re2 {[%emt 0:0:6]} Rc6 {[%emt 0:0:14]} 24. Kg1 {[%emt 0:0:4]} Qd4 {[%emt 0:0:29]} 25. c4 {[%emt 0:2:31]} bxc3 {[%emt 0:0:44]} 26. bxc3 {[%emt 0:0:4]
} Qxe3+ {[%emt 0:0:5]} 27. Rxe3 {[%emt 0:0:1]} Bxe4 {[%emt 0:0:0]} 28. dxe4 {[%emt 0:0:0]} Rd8 {[%emt 0:0:9]} 29. b4 {[%emt 0:0:18]} axb4 {[%emt 0:0:44]} 30. cxb4 {[%emt 0:0:0]} Rd4 {[%emt 0:0:39]} 31. b5 {[%emt 0:0:26]
} Rf6 {[%emt 0:0:22]} 32. g4 {[%emt 0:1:42]} Rb4 {[%emt 0:0:0]} 33. g5 {[%emt 0:0:3]} Rf8 {[%emt 0:2:28]} 34. Ra7 {[%emt 0:0:40]} Rxb5 {[%emt 0:0:1]} 35. Rd3 {[%emt 0:0:9]} Rb1+ {[%emt 0:0:3]} 36. Kh2 {[%emt 0:0:1]
} Rbf1 {[%emt 0:0:1]} 37. Re7 {[%emt 0:0:1]} b5 {[%emt 0:0:0]} 38. Rd5 {[%emt 0:0:8]} R1f7 {[%emt 0:0:42]} 39. Rexe5 {[%emt 0:0:9]} Rb7 {[%emt 0:0:8]} 40. Rxb5 {[%emt 0:0:2]} Rxb5 {[%emt 0:0:0]} 41. Rxb5 {[%emt 0:0:1]
} Re8 {[%emt 0:0:8]} 42. e5 {[%emt 0:0:6]} Kf7 {[%emt 0:0:0]} 43. Kg3 {[%emt 0:0:1]} Ke6 {[%emt 0:0:2]} 44. Kf4 {[%emt 0:0:7]} Rf8+ {[%emt 0:0:4]} 45. Ke4 {[%emt 0:0:2]} Rf2 {[%emt 0:0:14]} 46. Rb6+ {[%emt 0:0:2]
} Kf7 {[%emt 0:0:2]} 47. g3 {[%emt 0:0:24]} Re2+ {[%emt 0:0:0]} 48. Kd4 {[%emt 0:0:46]} Rd2+ {[%emt 0:0:19]} 49. Ke3 {[%emt 0:0:3]} Rd1 {[%emt 0:0:2]} 50. Rb7+ {[%emt 0:0:30]} Kg6 {[%emt 0:0:30]} 51. Ke4 {[%emt 0:0:1]
} Re1+ {[%emt 0:0:50]} 52. Kd5 {[%emt 0:0:5]} Rd1+ {[%emt 0:0:0]} 53. Ke6 {[%emt 0:1:6]} Rd3 {[%emt 0:0:1]} 54. Ke7 {[%emt 0:0:7]} Rxg3 {[%emt 0:0:55]} 55. e6 {[%emt 0:0:1]} Rxg5 {[%emt 0:1:21]} 56. Kf8 {[%emt 0:0:1]
} Re5 {[%emt 0:0:2]} 57. e7 {[%emt 0:1:18]} Re1 {[%emt 0:0:0]} 58. e8=Q+ {[%emt 0:0:8]} Rxe8+ {[%emt 0:0:1]} 59. Kxe8 {[%emt 0:0:1]
} h5 {[%emt 0:0:6]} 60. Rb5 {[%emt 0:2:1]} Kf6 {[%emt 0:0:13]} 61. Rxh5 {[%emt 0:0:26]
} g5 {[%emt 0:0:1]} 62. Kf8 {[%emt 0:0:30]} Kf5 {[%emt 0:0:0]} 63. Kg7 {[%emt 0:0:3]} Kf4 {[%emt 0:0:2]} 64. Kf6 {[%emt 0:0:22]} g4 {[%emt 0:0:7]} 65. Rf5+ {[%emt 0:0:16]} Ke3 {[%emt 0:0:2]} 66. Re5+ {[%emt 0:0:2]
} Kf2 {[%emt 0:0:34]} 67. Rf5+ {[%emt 0:0:1]} Ke2 {[%emt 0:0:0]} 68. Rg5 {[%emt 0:0:5]} Kf3 {[%emt 0:0:0]} 69. Rf5+ {[%emt 0:0:18]} Ke2 {[%emt 0:0:6]} 70. Re5+ {[%emt 0:0:9]} Kf3 {[%emt 0:0:1]} 71. Ra5 {[%emt 0:0:5]
} g3 {[%emt 0:0:9]} 72. Ra3+ {[%emt 0:0:1]} Kf2 {[%emt 0:0:0]} 73. Ra2+ {[%emt 0:0:4]} Kf3 {[%emt 0:0:3]} 74. Kf5 {[%emt 0:0:9]} g2 {[%emt 0:0:2]} 75. Rxg2 Kxg2 76. Ke4 1/2-1/2

[Event "FIDE World Rapid-ch Open 2018"]
[White "Demidov, Mikhail"]
[Black "Jakovenko, Dmitry"]
[Site "St. Petersburg"]
[Round "9.34"]
[Annotator "RC"]
[Result "0-1"]
[Date "2018.12.27"]
[WhiteElo "2520"]
[BlackElo "2735"]
[PlyCount "86"]
[TimeControl "900+10"]

1. d4 {[%emt 0:0:0]} Nf6 {[%emt 0:0:0]} 2. Nf3 {[%emt 0:0:0]} e6 {[%emt 0:0:0]
} 3. c4 {[%emt 0:0:29]} b6 {[%emt 0:0:0]} 4. e3 {[%emt 0:0:0]} Bb7 {[%emt 0:0:3]} 5. Bd3 {[%emt 0:0:1]} d5 {[%emt 0:0:5]} 6. Nc3 {[%emt 0:0:6]
} Bd6 {[%emt 0:0:10]} 7. cxd5 {[%emt 0:0:8]} exd5 {[%emt 0:0:0]} 8. Qa4+ {[%emt 0:0:4]} Nbd7 {[%emt 0:1:32]} 9. Ba6 {[%emt 0:0:19]} Bxa6 {[%emt 0:0:5]} 10. Qxa6 {[%emt 0:0:2]} c6 {[%emt 0:0:40]} 11. 0-0 {[%emt 0:0:13]
} 0-0 {[%emt 0:0:2]} 12. b3 {[%emt 0:0:35]} Qe7 {[%emt 0:0:0]} 13. Bb2 {[%emt 0:0:26]} Rfc8 {[%emt 0:0:12]} 14. Rac1 {[%emt 0:0:23]} Rc7 {[%emt 0:0:2]} 15. Qd3 {[%emt 0:1:47]} Ne4 {[%emt 0:0:13]} 16. Rc2 {[%emt 0:0:28]
} Rac8 {[%emt 0:0:22]} 17. Rfc1 {[%emt 0:0:4]} Nf8 {[%emt 0:0:0]} 18. Ne2 {[%emt 0:1:32]} Ng6 {[%emt 0:0:10]} 19. Ng3 {[%emt 0:0:8]} Qe6 {[%emt 0:0:21]} 20. Ne2 {[%emt 0:1:53]} h6 {[%emt 0:0:15]} 21. a4 {[%emt 0:1:2]
} Qf5 {[%emt 0:0:8]} 22. Qd1 {[%emt 0:0:37]} Qe6 {[%emt 0:0:0]} 23. Qd3 {[%emt 0:0:44]} h5 {[%emt 0:2:37]} 24. a5 {[%emt 0:1:17]} b5 {[%emt 0:0:2]
} 25. Ne5 {[%emt 0:1:34]} Nxe5 {[%emt 0:1:35]} 26. dxe5 {[%emt 0:0:3]
} Bxe5 {[%emt 0:0:1]} 27. Bxe5 {[%emt 0:0:24]} Qxe5 {[%emt 0:0:0]} 28. Nd4 {[%emt 0:0:4]} Qd6 {[%emt 0:0:24]} 29. f3 {[%emt 0:3:27]} Nf6 {[%emt 0:0:2]} 30. Qf5 {[%emt 0:1:1]} a6 {[%emt 0:1:4]} 31. Qg5 {[%emt 0:0:21]
} c5 {[%emt 0:0:14]} 32. Nf5 {[%emt 0:0:2]} Qf8 {[%emt 0:0:0]} 33. h3 {[%emt 0:0:52]} c4 {[%emt 0:0:13]} 34. b4 {[%emt 0:0:11]} Nh7 {[%emt 0:0:53]
} 35. Qxh5 {[%emt 0:0:15]} Qxb4 {[%emt 0:0:6]} 36. Rd1 {[%emt 0:0:9]
} Rd8 {[%emt 0:1:0]} 37. Rcd2 {[%emt 0:0:13]} c3 {[%emt 0:0:0]} 38. Rxd5 {[%emt 0:0:1]} Rxd5 {[%emt 0:0:10]} 39. Rxd5 {[%emt 0:0:1]} c2 {[%emt 0:0:22]} 40. Rd8+ {[%emt 0:0:15]} Nf8 {[%emt 0:0:37]} 41. Qg5 {[%emt 0:0:15]
} c1=Q+ {[%emt 0:0:2]} 42. Kh2 {[%emt 0:0:1]} Qcc3 {[%emt 0:0:0]} 43. f4 {[%emt 0:0:21]} Qf6 {[%emt 0:0:10]} 0-1

[Event "FIDE World Rapid-ch Open 2018"]
[White "Tsydypov, Zhamsaran"]
[Black "Jobava, Baadur"]
[Site "St. Petersburg"]
[Round "9.35"]
[Annotator "ChessBase"]
[Result "0-1"]
[Date "2018.12.27"]
[WhiteElo "2529"]
[BlackElo "2627"]
[PlyCount "152"]
[TimeControl "900+10"]

1. Nf3 {[%emt 0:0:0]} Nf6 {[%emt 0:0:0]} 2. c4 {[%emt 0:0:0]} c6 {[%emt 0:0:0]
} 3. g3 {[%emt 0:0:8]} d5 {[%emt 0:0:0]} 4. b3 {[%emt 0:0:0]} Bf5 {[%emt 0:0:11]} 5. Bg2 {[%emt 0:0:6]} e6 {[%emt 0:0:2]} 6. 0-0 {[%emt 0:0:14]
} h6 {[%emt 0:0:3]} 7. Bb2 {[%emt 0:0:11]} Be7 {[%emt 0:0:2]
} 8. d3 {[%emt 0:0:11]} 0-0 {[%emt 0:0:1]} 9. Nbd2 {[%emt 0:0:2]} Bh7 {[%emt 0:0:2]
} 10. a3 {[%emt 0:0:6]} Nbd7 {[%emt 0:0:5]} 11. b4 {[%emt 0:0:0]} Re8 {[%emt 0:0:12]} 12. Qb3 {[%emt 0:0:37]} Bf8 {[%emt 0:0:2]} 13. Ne5 {[%emt 0:0:4]} Nxe5 {[%emt 0:0:26]} 14. Bxe5 {[%emt 0:0:4]} a5 {[%emt 0:0:30]
} 15. bxa5 {[%emt 0:2:28]} Qxa5 {[%emt 0:0:38]} 16. Bc3 {[%emt 0:0:4]
} Qc7 {[%emt 0:2:22]} 17. Rfb1 {[%emt 0:0:22]} Reb8 {[%emt 0:0:0]} 18. Rc1 {[%emt 0:1:14]} Nd7 {[%emt 0:0:15]} 19. Qb2 {[%emt 0:0:16]} Qd8 {[%emt 0:0:52]} 20. Nb3 {[%emt 0:0:51]} Ra4 {[%emt 0:1:2]} 21. Nd2 {[%emt 0:0:28]
} Ra7 {[%emt 0:1:34]} 22. a4 {[%emt 0:0:27]} b6 {[%emt 0:2:52]
} 23. Nb3 {[%emt 0:3:8]} Rba8 {[%emt 0:0:3]} 24. Nd4 {[%emt 0:0:15]} Nb8 {[%emt 0:0:1]
} 25. cxd5 {[%emt 0:1:58]} exd5 {[%emt 0:2:19]} 26. Qb3 {[%emt 0:0:21]
} Rd7 {[%emt 0:0:15]} 27. Rab1 {[%emt 0:0:21]} Ra6 {[%emt 0:0:0]} 28. a5 {[%emt 0:0:41]} Rb7 {[%emt 0:2:1]} 29. Nxc6 {[%emt 0:1:36]} Nxc6 {[%emt 0:0:3]} 30. Qxd5 {[%emt 0:1:41]} Qxd5 {[%emt 0:0:4]} 31. Bxd5 {[%emt 0:0:2]} b5 {[%emt 0:0:15]} 32. Bd2 {[%emt 0:0:11]} b4 {[%emt 0:0:0]} 33. Bxc6 {[%emt 0:1:22]} Rc7 {[%emt 0:0:1]} 34. Bd5 {[%emt 0:0:2]} Rxc1+ {[%emt 0:0:2]} 35. Rxc1 {[%emt 0:0:1]} Rxa5 {[%emt 0:0:1]} 36. e4 {[%emt 0:0:0]
} Bf5 {[%emt 0:0:28]} 37. Rc6 {[%emt 0:1:5]} Bh3 {[%emt 0:0:0]} 38. f3 {[%emt 0:0:10]} Bc5+ {[%emt 0:0:11]} 39. Rxc5 {[%emt 0:0:14]} Rxc5 {[%emt 0:0:2]} 40. Bxb4 {[%emt 0:0:1]} Rc2 {[%emt 0:0:1]} 41. Bd6 {[%emt 0:0:21]
} Rd2 {[%emt 0:0:34]} 42. Bc4 {[%emt 0:0:9]} g5 {[%emt 0:0:0]} 43. g4 {[%emt 0:0:15]} Kg7 {[%emt 0:0:10]} 44. Be5+ {[%emt 0:0:10]} Kg6 {[%emt 0:0:4]} 45. Bd6 {[%emt 0:0:7]} f6 {[%emt 0:0:7]} 46. Bc7 {[%emt 0:0:0]} Rc2 {[%emt 0:0:38]} 47. Bd6 {[%emt 0:0:4]} Bg2 {[%emt 0:0:15]} 48. f4 {[%emt 0:0:5]} Bxe4 {[%emt 0:0:8]} 49. fxg5 {[%emt 0:0:27]} hxg5 {[%emt 0:0:2]
} 50. Bg3 {[%emt 0:0:6]} Rc3 {[%emt 0:0:31]} 51. Be1 {[%emt 0:0:0]} Rc1 {[%emt 0:0:3]} 52. Kf2 {[%emt 0:0:1]} Bc6 {[%emt 0:0:10]} 53. Ke2 {[%emt 0:0:13]} Rc2+ {[%emt 0:0:3]} 54. Bd2 {[%emt 0:0:1]} Bd7 {[%emt 0:0:6]
} 55. h3 {[%emt 0:0:3]} f5 {[%emt 0:0:1]} 56. gxf5+ {[%emt 0:0:0]} Bxf5 {[%emt 0:0:2]} 57. Ke3 {[%emt 0:0:1]} Bxh3 {[%emt 0:0:4]} 58. Bd5 {[%emt 0:0:1]} Bf5 {[%emt 0:0:2]} 59. Be1 {[%emt 0:0:7]} Rc8 {[%emt 0:0:4]
} 60. Bc4 {[%emt 0:0:11]} Re8+ {[%emt 0:0:2]} 61. Kf2 {[%emt 0:0:2]
} Rd8 {[%emt 0:0:13]} 62. Ba5 {[%emt 0:0:4]} Rd7 {[%emt 0:0:0]} 63. Ke3 {[%emt 0:0:3]} Kh5 {[%emt 0:0:3]} 64. Bc3 {[%emt 0:0:11]} Kh4 {[%emt 0:0:14]} 65. Bf6 {[%emt 0:0:3]} Rd6 {[%emt 0:0:18]} 66. Be7 {[%emt 0:0:2]
} Rd7 {[%emt 0:0:3]} 67. Bf6 {[%emt 0:0:2]} Rc7 {[%emt 0:0:0]} 68. Kd4 {[%emt 0:0:11]} Ra7 {[%emt 0:0:24]} 69. Ke5 {[%emt 0:0:6]} Ra5+ {[%emt 0:0:2]} 70. Kd4 {[%emt 0:0:4]} Bd7 {[%emt 0:0:16]} 71. Ke4 {[%emt 0:0:22]
} Rf5 {[%emt 0:0:7]} 72. Be7 {[%emt 0:0:7]} Kh3 {[%emt 0:0:0]} 73. Bd5 {[%emt 0:0:44]} g4 {[%emt 0:0:12]} 74. Bb4 {[%emt 0:0:44]} g3 {[%emt 0:0:8]
} 75. Bc6 {[%emt 0:0:1]} Rf7 {[%emt 0:0:3]} 76. Bd5 {[%emt 0:0:0]} g2 {[%emt 0:0:6]} 0-1

[Event "FIDE World Rapid-ch Open 2018"]
[White "Riazantsev, Alexander"]
[Black "Gutenev, Alexander"]
[Site "St. Petersburg"]
[Round "9.36"]
[Annotator "ChessBase"]
[Result "1-0"]
[Date "2018.12.27"]
[WhiteElo "2649"]
[BlackElo "2456"]
[PlyCount "63"]
[TimeControl "900+10"]

1. d4 {[%emt 0:0:0]} Nf6 {[%emt 0:0:0]} 2. c4 {[%emt 0:0:0]} g6 3. Nc3 d5 {[%emt 0:0:0]} 4. cxd5 {[%emt 0:0:0]} Nxd5 {[%emt 0:0:0]} 5. e4 {[%emt 0:0:0]} Nxc3 {[%emt 0:0:0]} 6. bxc3 {[%emt 0:0:0]} Bg7 {[%emt 0:0:0]} 7. Bg5 {[%emt 0:0:0]} 0-0 {[%emt 0:0:32]} 8. Rc1 {[%emt 0:0:0]} c5 {[%emt 0:0:0]} 9. Nf3 {[%emt 0:0:0]} cxd4 {[%emt 0:0:35]} 10. cxd4 {[%emt 0:0:0]} Bg4 {[%emt 0:1:26]} 11. d5 {[%emt 0:0:2]} h6 {[%emt 0:0:41]} 12. Be3 {[%emt 0:0:15]
} e6 {[%emt 0:1:34]} 13. Bc4 {[%emt 0:1:50]} exd5 {[%emt 0:0:0]} 14. Bxd5 {[%emt 0:0:1]} Nc6 {[%emt 0:0:33]} 15. h3 {[%emt 0:0:1]} Be6 {[%emt 0:0:58]} 16. 0-0 {[%emt 0:0:50]} Re8 {[%emt 0:0:48]} 17. Qd2 {[%emt 0:1:11]
} Bxd5 {[%emt 0:1:8]} 18. exd5 {[%emt 0:0:7]} Ne7 {[%emt 0:0:0]} 19. d6 {[%emt 0:0:53]} Nf5 {[%emt 0:0:25]} 20. Bf4 {[%emt 0:0:1]} Re4 {[%emt 0:1:11]} 21. Rfe1 {[%emt 0:1:47]} Rxe1+ {[%emt 0:2:9]} 22. Rxe1 {[%emt 0:0:0]} Qd7 {[%emt 0:1:55]} 23. g4 {[%emt 0:0:13]} g5 {[%emt 0:0:0]} 24. Bh2 {[%emt 0:2:7]} Nh4 {[%emt 0:1:19]} 25. Nxh4 {[%emt 0:0:2]} gxh4 {[%emt 0:0:1]} 26. Re7 {[%emt 0:1:50]} Qc6 {[%emt 0:0:17]} 27. Rc7 {[%emt 0:0:1]
} Qb5 {[%emt 0:0:22]} 28. d7 {[%emt 0:1:7]} Rd8 {[%emt 0:0:0]} 29. Rc8 {[%emt 0:0:14]} Qb1+ {[%emt 0:0:10]} 30. Kg2 {[%emt 0:0:2]} Bf6 {[%emt 0:0:1]} 31. Bc7 {[%emt 0:0:45]} Qe4+ {[%emt 0:0:15]} 32. f3 {[%emt 0:0:18]
} 1-0

[Event "FIDE World Rapid-ch Open 2018"]
[White "Potapov, Pavel"]
[Black "Petrosian, Tigran L."]
[Site "St. Petersburg"]
[Round "9.37"]
[Annotator "ChessBase"]
[Result "0-1"]
[Date "2018.12.27"]
[WhiteElo "2516"]
[BlackElo "2598"]
[PlyCount "88"]
[TimeControl "900+10"]

1. e4 {[%emt 0:0:0]} g6 {[%emt 0:0:0]} 2. d4 {[%emt 0:0:0]} Bg7 {[%emt 0:0:0]} 3. Nc3 {[%emt 0:0:0]} a6 {[%emt 0:0:0]} 4. f4 {[%emt 0:0:26]} b5 {[%emt 0:0:0]
} 5. Nf3 {[%emt 0:0:8]} d6 {[%emt 0:0:0]} 6. Be3 {[%emt 0:0:0]} Bb7 {[%emt 0:0:0]} 7. a3 {[%emt 0:0:19]} Nd7 {[%emt 0:0:2]} 8. Be2 {[%emt 0:0:50]
} c5 {[%emt 0:1:9]} 9. dxc5 {[%emt 0:0:30]} Nxc5 {[%emt 0:0:0]} 10. e5 {[%emt 0:0:22]} Nh6 {[%emt 0:0:6]} 11. exd6 {[%emt 0:0:45]} exd6 {[%emt 0:0:3]} 12. Bd4 {[%emt 0:0:14]} 0-0 {[%emt 0:0:15]} 13. Bxg7 {[%emt 0:0:20]
} Kxg7 {[%emt 0:0:1]} 14. Qd4+ {[%emt 0:0:54]} Kg8 {[%emt 0:0:0]} 15. 0-0-0 {[%emt 0:0:36]} Nf5 {[%emt 0:0:18]} 16. Qd2 {[%emt 0:0:54]
} Re8 {[%emt 0:0:20]} 17. Rde1 {[%emt 0:1:56]} d5 {[%emt 0:5:51]} 18. g4 {[%emt 0:2:35]
} Ne3 {[%emt 0:4:41]} 19. Nd4 {[%emt 0:0:48]} Ng2 {[%emt 0:0:0]} 20. Reg1 {[%emt 0:0:40]} Ne4 {[%emt 0:0:7]} 21. Nxe4 {[%emt 0:0:49]} dxe4 {[%emt 0:0:1]} 22. f5 {[%emt 0:1:32]} e3 {[%emt 0:0:13]} 23. Qd1 {[%emt 0:0:2]
} Nf4 {[%emt 0:1:22]} 24. Bf3 {[%emt 0:0:51]} e2 {[%emt 0:0:0]} 25. Qd2 {[%emt 0:0:4]} Bxf3 {[%emt 0:0:7]} 26. Nxf3 {[%emt 0:0:6]} Qxd2+ {[%emt 0:0:7]} 27. Nxd2 {[%emt 0:0:18]} Rac8 {[%emt 0:0:35]} 28. Kb1 {[%emt 0:0:8]} Re3 {[%emt 0:0:26]} 29. Nb3 {[%emt 0:1:3]} Rd8 {[%emt 0:0:0]} 30. Nc1 {[%emt 0:0:30]} Ng2 {[%emt 0:0:23]} 31. Rxg2 {[%emt 0:0:12]} e1=Q {[%emt 0:0:2]} 32. Rxe1 {[%emt 0:0:1]} Rxe1 {[%emt 0:0:1]} 33. c3 {[%emt 0:0:2]
} Rdd1 {[%emt 0:0:3]} 34. Rc2 {[%emt 0:0:1]} gxf5 {[%emt 0:0:0]} 35. gxf5 {[%emt 0:0:1]} Rf1 {[%emt 0:0:4]} 36. b3 {[%emt 0:0:13]} Rxf5 {[%emt 0:0:3]} 37. c4 {[%emt 0:0:1]} bxc4 {[%emt 0:0:3]} 38. bxc4 {[%emt 0:0:1]
} Kf8 {[%emt 0:0:17]} 39. Kb2 {[%emt 0:0:6]} Ke7 {[%emt 0:0:0]} 40. Nb3 {[%emt 0:0:5]} Rdf1 {[%emt 0:0:13]} 41. Re2+ {[%emt 0:0:5]} Kd7 {[%emt 0:0:11]} 42. Re4 {[%emt 0:0:51]} R1f2+ {[%emt 0:0:8]} 43. Kc3 {[%emt 0:0:3]
} R5f3+ {[%emt 0:0:1]} 44. Kb4 {[%emt 0:0:5]} Rb2 {[%emt 0:0:0]} 0-1

[Event "FIDE World Rapid-ch Open 2018"]
[White "Pantsulaia, Levan"]
[Black "Sanal, Vahap"]
[Site "St. Petersburg"]
[Round "9.38"]
[Annotator "ChessBase"]
[Result "1-0"]
[Date "2018.12.27"]
[WhiteElo "2597"]
[BlackElo "2490"]
[PlyCount "85"]
[TimeControl "900+10"]

1. c4 {[%emt 0:0:0]} Nf6 {[%emt 0:0:16]} 2. Nc3 {[%emt 0:0:9]} e5 {[%emt 0:0:13]
} 3. Nf3 {[%emt 0:0:3]} Nc6 {[%emt 0:0:3]} 4. e4 {[%emt 0:0:0]} Bc5 {[%emt 0:0:49]} 5. Nxe5 {[%emt 0:0:4]} Nxe5 {[%emt 0:0:15]} 6. d4 {[%emt 0:0:1]} Bb4 {[%emt 0:2:24]} 7. dxe5 {[%emt 0:0:3]} Nxe4 {[%emt 0:0:0]} 8. Qf3 {[%emt 0:0:3]} d5 {[%emt 0:1:31]} 9. a3 {[%emt 0:2:44]} Bxc3+ {[%emt 0:0:6]} 10. bxc3 {[%emt 0:0:2]} 0-0 {[%emt 0:0:11]} 11. Be3 {[%emt 0:6:26]
} Qe7 {[%emt 0:1:17]} 12. Bd4 {[%emt 0:1:8]} Be6 {[%emt 0:0:0]} 13. Bd3 {[%emt 0:0:6]} f5 {[%emt 0:2:0]} 14. exf6 {[%emt 0:0:44]} Nxf6 {[%emt 0:0:5]} 15. Qe2 {[%emt 0:3:23]} Rae8 {[%emt 0:0:52]} 16. 0-0 {[%emt 0:0:6]
} c5 {[%emt 0:0:16]} 17. cxd5 {[%emt 0:0:47]} Nxd5 {[%emt 0:0:0]} 18. Qe4 {[%emt 0:0:34]} g6 {[%emt 0:2:5]} 19. Be5 {[%emt 0:0:2]} Qd7 {[%emt 0:0:12]} 20. f4 {[%emt 0:0:49]} Nf6 {[%emt 0:1:11]} 21. Qe2 {[%emt 0:0:0]} a6 {[%emt 0:0:37]} 22. Rad1 {[%emt 0:0:16]} Qc8 {[%emt 0:0:34]} 23. h3 {[%emt 0:0:12]} b5 {[%emt 0:0:32]} 24. a4 {[%emt 0:0:20]} c4 {[%emt 0:0:0]} 25. Bc2 {[%emt 0:0:3]} Nd7 {[%emt 0:0:5]} 26. axb5 {[%emt 0:0:26]} axb5 {[%emt 0:0:9]} 27. Bd4 {[%emt 0:0:13]} Bf5 {[%emt 0:0:15]} 28. Qf2 {[%emt 0:0:3]
} Bxc2 {[%emt 0:0:9]} 29. Qxc2 {[%emt 0:0:1]} Nc5 {[%emt 0:0:0]} 30. Rb1 {[%emt 0:0:21]} Qc6 {[%emt 0:0:10]} 31. f5 {[%emt 0:0:2]} Ne4 {[%emt 0:0:13]} 32. fxg6 {[%emt 0:0:3]} hxg6 {[%emt 0:0:2]} 33. Rbe1 {[%emt 0:0:11]
} Rxf1+ {[%emt 0:0:6]} 34. Rxf1 {[%emt 0:0:1]} Qd5 {[%emt 0:0:0]} 35. Qc1 {[%emt 0:0:15]} g5 {[%emt 0:0:16]} 36. Qd1 {[%emt 0:0:25]} Rf8 {[%emt 0:0:20]} 37. Re1 {[%emt 0:0:9]} Nf6 {[%emt 0:0:23]} 38. Re5 {[%emt 0:0:3]
} Qd6 {[%emt 0:0:15]} 39. Rxg5+ {[%emt 0:0:2]} Kf7 {[%emt 0:0:0]} 40. Rxb5 {[%emt 0:0:3]} Rd8 {[%emt 0:0:19]} 41. Qf3 {[%emt 0:0:10]} Re8 {[%emt 0:0:10]} 42. Rb7+ {[%emt 0:0:27]} Kg6 {[%emt 0:0:3]} 43. Rb6 {[%emt 0:0:6]
} 1-0

[Event "FIDE World Rapid-ch Open 2018"]
[White "Ghaem Maghami, Ehsan"]
[Black "Yudin, Sergei"]
[Site "St. Petersburg"]
[Round "9.39"]
[Annotator "ChessBase"]
[Result "1/2-1/2"]
[Date "2018.12.27"]
[WhiteElo "2537"]
[BlackElo "2507"]
[PlyCount "143"]
[TimeControl "900+10"]

1. d4 {[%emt 0:0:0]} d5 {[%emt 0:0:0]} 2. Nf3 {[%emt 0:0:0]} c6 {[%emt 0:0:0]} 3. c4 {[%emt 0:0:0]} e6 {[%emt 0:0:0]} 4. Bg5 {[%emt 0:0:16]} Be7 {[%emt 0:0:2]} 5. Bxe7 {[%emt 0:0:19]} Qxe7 {[%emt 0:0:2]} 6. Qb3 {[%emt 0:2:18]
} Nf6 {[%emt 0:0:31]} 7. g3 {[%emt 0:1:30]} Nbd7 {[%emt 0:0:0]} 8. cxd5 {[%emt 0:1:7]} exd5 {[%emt 0:0:11]} 9. Bg2 {[%emt 0:0:15]} 0-0 {[%emt 0:0:18]} 10. Nc3 {[%emt 0:0:3]} Ne4 {[%emt 0:1:18]} 11. e3 {[%emt 0:0:0]} Ndf6 {[%emt 0:1:5]} 12. 0-0 {[%emt 0:1:26]} Bg4 {[%emt 0:0:18]} 13. Nxe4 {[%emt 0:0:17]} Nxe4 {[%emt 0:0:12]} 14. Ne5 {[%emt 0:1:7]} Be6 {[%emt 0:0:54]
} 15. Rfe1 {[%emt 0:2:6]} Rfe8 {[%emt 0:0:39]} 16. Rac1 {[%emt 0:0:9]
} h5 {[%emt 0:1:39]} 17. Qd1 {[%emt 0:1:41]} h4 {[%emt 0:0:48]
} 18. Qh5 {[%emt 0:0:14]} hxg3 {[%emt 0:0:25]} 19. hxg3 {[%emt 0:0:14]} Nf6 {[%emt 0:0:27]} 20. Qh4 {[%emt 0:0:28]} Nd7 {[%emt 0:0:20]} 21. Qxe7 {[%emt 0:0:37]
} Rxe7 {[%emt 0:0:2]} 22. Nxd7 {[%emt 0:1:25]} Rxd7 {[%emt 0:0:0]} 23. f3 {[%emt 0:0:10]} Kf8 {[%emt 0:0:19]} 24. Kf2 {[%emt 0:0:2]} Ke7 {[%emt 0:0:1]} 25. Rh1 {[%emt 0:0:9]} Rdd8 {[%emt 0:0:2]} 26. Bh3 {[%emt 0:0:22]
} Rh8 {[%emt 0:0:15]} 27. Bxe6 {[%emt 0:0:28]} Kxe6 {[%emt 0:0:0]} 28. g4 {[%emt 0:0:8]} Kd6 {[%emt 0:0:15]} 29. e4 {[%emt 0:0:25]} f6 {[%emt 0:0:32]} 30. Ke3 {[%emt 0:0:13]} Rae8 {[%emt 0:0:14]} 31. Kf4 {[%emt 0:0:33]
} dxe4 {[%emt 0:1:12]} 32. fxe4 {[%emt 0:0:4]} Ke6 {[%emt 0:0:0]} 33. g5 {[%emt 0:0:38]} fxg5+ {[%emt 0:0:17]} 34. Kxg5 {[%emt 0:0:5]
} Rxh1 {[%emt 0:0:3]} 35. Rxh1 {[%emt 0:0:3]} Rd8 {[%emt 0:0:1]} 36. d5+ {[%emt 0:1:0]} cxd5 {[%emt 0:0:20]} 37. exd5+ {[%emt 0:0:10]} Rxd5+ {[%emt 0:0:3]
} 38. Kf4 {[%emt 0:0:8]} Rd2 {[%emt 0:0:11]} 39. Rb1 {[%emt 0:0:0]} Kf6 {[%emt 0:0:7]} 40. Ke3 {[%emt 0:0:8]} Rh2 {[%emt 0:0:5]} 41. a4 {[%emt 0:0:6]} Ke5 {[%emt 0:0:25]} 42. Rg1 {[%emt 0:0:21]} Kf6 {[%emt 0:0:0]} 43. Rb1 {[%emt 0:0:6]} g5 {[%emt 0:0:4]} 44. b4 {[%emt 0:0:10]} Ke5 {[%emt 0:0:29]} 45. Rc1 {[%emt 0:0:14]} Rh3+ {[%emt 0:0:19]} 46. Kf2 {[%emt 0:0:4]
} Rh4 {[%emt 0:0:23]} 47. Rc5+ {[%emt 0:0:11]} Kd6 {[%emt 0:0:0]} 48. Rb5 {[%emt 0:0:8]} b6 {[%emt 0:0:3]} 49. a5 {[%emt 0:0:6]} Kc6 {[%emt 0:0:35]
} 50. Rxg5 {[%emt 0:0:3]} Rxb4 {[%emt 0:0:7]} 51. axb6 {[%emt 0:0:4]
} axb6 {[%emt 0:0:12]} 52. Ke3 {[%emt 0:0:9]} Rc4 {[%emt 0:0:0]} 53. Kd3 {[%emt 0:0:19]} b5 {[%emt 0:0:5]} 54. Rg6+ {[%emt 0:0:21]} Kc5 {[%emt 0:0:10]} 55. Rg1 {[%emt 0:0:2]} Kb6 {[%emt 0:0:23]} 56. Rb1 {[%emt 0:0:17]
} Rc8 {[%emt 0:0:48]} 57. Kd4 {[%emt 0:0:13]} Rc2 {[%emt 0:0:0]} 58. Kd3 {[%emt 0:0:4]} Rc4 {[%emt 0:0:2]} 59. Rh1 {[%emt 0:0:13]} Kc5 {[%emt 0:1:3]} 60. Rg1 {[%emt 0:0:2]} Kb4 {[%emt 0:1:0]} 61. Rb1+ {[%emt 0:0:5]
} Ka5 {[%emt 0:0:2]} 62. Ra1+ {[%emt 0:0:7]} Ra4 {[%emt 0:0:0]} 63. Rb1 {[%emt 0:0:11]} Ra3+ {[%emt 0:0:8]} 64. Kc2 {[%emt 0:0:5]} Ka4 {[%emt 0:0:3]} 65. Rh1 {[%emt 0:0:8]} Rg3 {[%emt 0:0:4]} 66. Kb2 {[%emt 0:0:19]
} Rg2+ {[%emt 0:0:7]} 67. Kb1 {[%emt 0:0:1]} Rg3 {[%emt 0:0:0]} 68. Kb2 {[%emt 0:0:7]} b4 {[%emt 0:0:2]} 69. Rh2 {[%emt 0:0:3]} Rb3+ {[%emt 0:0:35]} 70. Ka2 {[%emt 0:0:4]} Ra3+ {[%emt 0:0:3]} 71. Kb2 {[%emt 0:0:1]
} Rb3+ {[%emt 0:0:2]} 72. Ka2 {[%emt 0:0:2]} 1/2-1/2